Cogmind - Beta 11.1 @@@ ROGUE MODE // 2022.06.15 @ 21:51:19 Player: Demise Result: Destroyed by S-10 Pest with Light Assault Rifle Performance ------------- Evolutions (0) 0 Regions Visited (2) 400 Robots Destroyed (49) 245 Value Destroyed (975) 975 Prototype IDs (3) 60 Alien Tech Used (0) 0 Bonus (2) 2 TOTAL SCORE: 1682 Bonus ------- High Alert Combat Kills 2 Cogmind --------- Core Integrity 0/250 Matter 185/300 Energy 250/250 System Corruption 1% Temperature Cool (0) Movement Rolling (95) Ox1 Location -10/Mines Parts ------- > --- POWER (1) -------- Ion Engine > --- PROPULSION (2) --- Wheel Wheel > --- UTILITY (2) ------ Large Storage Unit Seismic Detector > --- WEAPON (2) ------- Light Assault Rifle Rocket Launcher > --- INVENTORY (15) --- Wheel Wheel Wheel Weight Redist. System Signal Interpreter Improved Terrain Scanner Light Armor Plating Light Armor Plating EM Pulse Gun EM Pulse Gun Light Assault Rifle Light Assault Rifle Light Assault Rifle Datajack Hammer Peak State ------------ > --- POWER ------------ Light Ion Engine > --- PROPULSION ------- Wheel Wheel > --- UTILITY ---------- Large Storage Unit Shield Generator > --- WEAPON ----------- Assault Rifle Light Assault Rifle > --- INVENTORY -------- Wheel Wheel Wheel Wheel Sensor Array Improved Terrain Scanner Seismic Detector Propulsion Shielding EM Pulse Gun EM Pulse Gun Light Assault Rifle Light Assault Rifle Light Assault Rifle Light Assault Rifle [Rating: 9] Favorites ----------- Power Ion Engine Engine Ion Engine Propulsion Wheel Wheel Wheel Utility Large Storage Unit Device Seismic Detector Storage Large Storage Unit Processor Signal Interpreter Protection Propulsion Shielding Weapon Light Assault Rifle Energy Gun Medium Laser Ballistic Gun Light Assault Rifle Launcher Rocket Launcher Build | -11 -10 -10 ------- Run | Scr Mat Min Slots Evolved . | . . . Power . | . . . Propulsion . | . . . Utility . | . . . Weapon . | . . . Parts Attached 37 | 8 23 6 Power 4 | 1 3 . Engine 4 | 1 3 . Core . | . . . Reactor . | . . . Propulsion 11 | 3 8 . Treads . | . . . Leg . | . . . Wheel 11 | 3 8 . Hover . | . . . Flight . | . . . Utility 13 | 2 8 3 Device 6 | 1 3 2 Storage 2 | 1 1 . Processor 1 | . 1 . Hackware . | . . . Protection 4 | . 3 1 Artifact . | . . . Weapon 9 | 2 4 3 Energy Gun 1 | 1 . . Energy Cannon . | . . . Ballistic Gun 6 | 1 4 1 Ballistic Cannon . | . . . Launcher 2 | . . 2 Special Weapon . | . . . Impact Weapon . | . . . Slashing Weapon . | . . . Piercing Weapon . | . . . Special Melee Weapon . | . . . Unidentified Prototypes . | . . . Parts Lost 7 | . 7 . Power 2 | . 2 . Propulsion 2 | . 2 . Utility 1 | . 1 . Weapon 2 | . 2 . Highest Loss Streak 2 | . 2 . To Critical Strikes . | . . . Average Slot Usage (%) 95 | . 94 100 Engine 13 | . 13 14 Wheel 26 | . 26 28 Device 4 | . 3 9 Storage 14 | . 14 14 Protection 7 | . 8 4 Energy Gun 2 | . 2 . Ballistic Gun 25 | . 25 20 Naked Turns . | . . . Heaviest Build 31 | 13 30 31 Greatest Support 26 | 26 20 20 Greatest Overweight (x) 2 | 2 2 1 Average Overweight (x) 1 | . 1 1 Largest Inventory Capacity 15 | 8 15 15 Average Capacity 14 | 7 14 15 Most Carried 15 | 8 15 15 Average Carried 11 | 3 12 14 Final Capacity 15 | 8 15 15 Final Carried 15 | 6 15 15 Class Distribution -------------------- 78% | Mutant 21% | Scavenger-Mutant Dominant Class ---------------- Mutant | -10/Materials Scavenger-Mutant | -10/Mines Resources | -11 -10 -10 ----------- Run | Scr Mat Min Matter Collected 956 | 340 581 35 Remotely . | . . . Salvage Created 1556 | 214 1264 78 Parts 108 | 19 86 3 Haulers Intercepted 2 | . 2 . Recyclers Shooed 6 | . 6 . Parts Field Recycled . | . . . Retrieved Matter . | . . . Parts Self-Destructed . | . . . Prevented . | . . . Kills | -11 -10 -10 ------- Run | Scr Mat Min Combat Hostiles Destroyed 25 | . 22 3 Guns 22 | . 22 . AOE 3 | . . 3 Classes Destroyed 9 | 3 6 . Worker 5 | 2 3 . Builder 2 | . 2 . Tunneler 8 | 5 3 . Hauler 2 | . 2 . Recycler 4 | 1 3 . Operator 1 | . 1 . Watcher 2 | . 2 . Swarmer 7 | . 6 1 Grunt 18 | . 16 2 Best Kill Streak 5 | 5 5 2 Combat Bots Only 3 | . 3 2 Max Kills in Single Turn 2 | 1 1 2 Gunslinging . | . . . Exploded 2 | . . 2 Melee . | . . . Uniques/NPCs Destroyed . | . . . Combat | -11 -10 -10 -------- Run | Scr Mat Min Damage Taken 912 | . 815 97 Core 257 | . 208 49 Absorbed by Shields 31 | . 31 . Redirected to Shielding 39 | . 39 . Regen/Repaired (Parts) 9 | . 9 . Core Remaining (%) 100 | 100 . . Volleys Fired 184 | 20 158 6 Largest 2 | 2 2 2 Hottest 70 | 70 70 53 Shots Fired 361 | 40 313 8 Gun 355 | 40 313 2 Cannon . | . . . Launcher 6 | . . 6 Special . | . . . Kinetic 320 | 20 298 2 Thermal 35 | 20 15 . Explosive 6 | . . 6 Electromagnetic . | . . . Robot Hit Streak 18 | 7 18 7 Robot Miss Streak 9 | 2 9 3 Penetration Max . | . . . Secondary Targets 1 | . 1 . Max Gunslinging Chain 1 | . 1 . Shots Hit Robots 227 | 24 200 3 Core Hits 88 | 9 76 3 Critical Kills . | . . . Critical Parts Destroyed 1 | . 1 . Critical Strikes 6 | 4 2 . Burn 5 | 4 1 . Destroy 1 | . 1 . Melee Attacks . | . . . Impact . | . . . Slashing . | . . . Piercing . | . . . Sneak Attacks . | . . . Combat Hostiles . | . . . Follow-up Attacks . | . . . Damage Inflicted 2523 | 333 1877 313 Guns 2216 | 333 1877 6 Cannons . | . . . Explosions 307 | . . 307 Melee . | . . . Ramming . | . . . Kinetic 1972 | 195 1771 6 Thermal 329 | 138 106 85 Explosive 222 | . . 222 Electromagnetic . | . . . Impact . | . . . Slashing . | . . . Piercing . | . . . Highest Corruption 1 | . 1 1 Average Corruption 1 | . 1 1 Corruption Purged . | . . . Corruption Blocked . | . . . Effects 8 | . 5 3 Message Errors 4 | . 3 1 Matter Fused 2 | . 1 1 Heat Flow Errors 2 | . 1 1 Overload Shots . | . . . Overflow Damage . | . . . Projectiles . | . . . Explosions . | . . . Melee . | . . . Knockbacks . | . . . Impact . | . . . Kinetic . | . . . Secondary . | . . . Self-Inflicted Damage 52 | . . 52 Shots 3 | . . 3 Rammed . | . . . Targets Rammed . | . . . Kicked . | . . . Crushed . | . . . Highest Temperature 270 | . 204 270 Average Temperature 21 | . 13 110 Received Heat Transfer 433 | . 433 . Siege Activations . | . . . Robots Corrupted . | . . . Combat Hostiles . | . . . Parts Fried . | . . . Impact Corruptions . | . . . Robots Melted . | . . . Combat Hostiles . | . . . Parts Melted 3 | 1 2 . Heat Transferred 1173 | 703 370 100 Parts Sabotaged . | . . . Parts Stolen . | . . . Parts Stripped . | . . . Power Chain Reactions . | . . . Missiles Intercepted . | . . . Alert | -11 -10 -10 ------- Run | Scr Mat Min Peak Influence 638 | 40 369 638 Initial 115 | . 26 115 Average 206 | 18 210 335 Maximum Alert Level 2 | . 1 2 Low Security (%) 52 | 100 48 42 Level 1 41 | . 51 . Level 2 5 | . . 57 Level 3 . | . . . Level 4 . | . . . Level 5 . | . . . High Security . | . . . Max Security . | . . . Squads Dispatched 6 | . 6 . Investigation 5 | . 5 . Extermination . | . . . Reinforcement 1 | . 1 . Assault . | . . . Garrison . | . . . Intercept . | . . . Searches Triggered . | . . . Construction Impeded . | . . . Haulers Reinforced . | . . . Active Scanning Responses . | . . . Cargo Convoy Interrupts . | . . . Stealth | -11 -10 -10 --------- Run | Scr Mat Min Distress Signals 3 | . 3 . Communications Jammed . | . . . Distress Signals . | . . . Times Spotted 43 | . 38 5 Peak Tracking Total 4 | . 4 3 Tactical Retreats 1 | . 1 . Traps | -11 -10 -10 ------- Run | Scr Mat Min Traps Triggered 2 | . 2 . Indirectly . | . . . Trap Hack Attempts . | . . . Triggered . | . . . Disarmed . | . . . Reprogrammed . | . . . Reused . | . . . Traps Extracted . | . . . Installed . | . . . Triggered . | . . . Machines | -11 -10 -10 ---------- Run | Scr Mat Min Machines Disabled 12 | . . 12 Max in Single Turn 12 | . . 12 Machines Sabotaged . | . . . Garrisons Compromised . | . . . Overloaded Fab Kills . | . . . Hacking | -11 -10 -10 --------- Run | Scr Mat Min Machines Accessed 10 | . 10 . Terminals 7 | . 7 . Fabricators . | . . . Repair Stations 1 | . 1 . Recycling Units 2 | . 2 . Scanalyzers . | . . . Garrison Access . | . . . Total Hacks 39 | . 39 . Successful 18 | . 18 . Failed 20 | . 20 . Catastrophic 1 | . 1 . Database Lockouts 1 | . 1 . Manual 29 | . 29 . Terminals 30 | . 30 . Fabricators . | . . . Repair Stations 4 | . 4 . Recycling Units 5 | . 5 . Scanalyzers . | . . . Garrison Access . | . . . Terminal Hacks 6 | . 6 . Robot Analysis 4 | . 4 . Prototype ID Bank 1 | . 1 . Terminal Index 1 | . 1 . Fabricator Hacks . | . . . Repair Station Hacks 2 | . 2 . Scan Component 1 | . 1 . Repair 1 | . 1 . Recycling Unit Hacks 1 | . 1 . Retrieve Components 1 | . 1 . Scanalyzer . | . . . Garrison Access Hacks . | . . . Unauthorized Hacks 9 | . 9 . Terminals 7 | . 7 . Botnet 6 | . 6 . Operators 1 | . 1 . Fabricators . | . . . Repair Stations . | . . . Recycling Units 2 | . 2 . Recyclers 1 | . 1 . Tunnel 1 | . 1 . Scanalyzers . | . . . Garrison Access . | . . . Data Cores Recovered . | . . . Used . | . . . Hacking Detections 10 | . 10 . Full Trace Events 6 | . 6 . Feedback Events 1 | . 1 . Corruption 1 | . 1 . Feedback Blocked . | . . . Robot Schematics Acquired . | . . . Robots Built . | . . . Authchips . | . . . Time . | . . . Total Robot Build Rating . | . . . Part Schematics Acquired . | . . . Parts Built . | . . . Authchips . | . . . Time . | . . . Total Part Build Rating . | . . . Parts Repaired 1 | . 1 . Time 16 | . 16 . Parts Recycled . | . . . Recycled Matter . | . . . Retrieved Matter . | . . . Retrieved Components 2 | . 2 . Parts Scanalyzed . | . . . Part Schematics Acquired . | . . . Parts Damaged . | . . . Bothacking | -11 -10 -10 ------------ Run | Scr Mat Min Used RIF Installer . | . . . Robots Hacked . | . . . Non-combat . | . . . Combat . | . . . Robot Hacks Applied . | . . . Relay Couplers Released . | . . . Fabnet Peak Effective % . | . . . Robots Rewired . | . . . Allies Hacked . | . . . Hacks Repelled . | . . . Allies | -11 -10 -10 -------- Run | Scr Mat Min Total Allies . | . . . Largest Group . | . . . Highest-Rated Group . | . . . Highest-Rated Ally . | . . . Total Orders . | . . . Ally Attacks . | . . . Total Damage . | . . . Kills . | . . . Allies Corrupted . | . . . Allies Melted . | . . . Intel | -11 -10 -10 ------- Run | Scr Mat Min Robot Analysis Total 4 | . 4 . Derelict Logs Recovered . | . . . Drone Launches . | . . . Drone Recoveries . | . . . Exploration | -11 -10 -10 ------------- Run | Scr Mat Min Turns Passed 1630 | 138 1329 163 Spaces Moved 1049 | 65 837 147 Core 10 | 10 . . Treads . | . . . Legs . | . . . Wheels 1039 | 55 837 147 Hover . | . . . Flight . | . . . Fastest Speed 50 | 50 80 95 Average Speed 95 | 87 96 95 Slowest Speed 150 | 150 110 95 Overloaded Moves . | . . . Propulsion Burnouts . | . . . Robots Hopped . | . . . Cave-ins Triggered . | . . . Exploration Rate (%) 49 | 3 97 48 Regions Visited 2 Branch Regions 1 Pre-discovered Areas 1 | . 1 . Known Exits Taken 1 | . 1 . Unknown Exits Taken 1 | 1 . . Scrap Searched . | . . . Spaces Dug . | . . . Terrain Destroyed 106 | . . 106 Melee . | . . . Projectile . | . . . AOE 106 | . . 106 Terrain Rammed . | . . . Walls Destroyed . | . . . Machines Disabled . | . . . Actions | -11 -10 -10 --------- Run | Scr Mat Min Total 1368 | 104 1103 161 Wait 47 | . 47 . Move 1047 | 64 836 147 Hop . | . . . Pick Up 30 | 9 20 1 Fast Attach 13 | 7 6 . Attach 9 | 1 8 . Detach 4 | . 4 . Swap 15 | . 9 6 Drop 19 | 3 15 1 Fire 184 | 20 158 6 Melee . | . . . Ram . | . . . Kick . | . . . Crush . | . . . Escape Stasis . | . . . Rewire . | . . . Trap . | . . . Miscellaneous . | . . . Route ------- -11/Scrapyard -10/Materials (discovered 5 exits: [*Mat x3] / *Min x2) -10/Mines History --------- Turn | Location | Event 17 | -11/Scrapyard | Discovered new exit (range 15) 139 | -11/Scrapyard | Entered Materials 315 | -10/Materials | Build established: Mutant 327 | -10/Materials | Repaired Shield Generator 483 | -10/Materials | Discovered new exit (range 7) 520 | -10/Materials | Discovered new exit (range 13) 520 | -10/Materials | Discovered new exit (range 8) 623 | -10/Materials | Discovered new exit (range 15) 803 | -10/Materials | Core integrity fell below 50% 935 | -10/Materials | Discovered new exit (range 7) 1050 | -10/Materials | Central database locked down 1161 | -10/Materials | Core integrity fell below 20% 1313 | -10/Materials | Identified exit to Mines 1468 | -10/Materials | Entered Mines 1523 | -10/Mines | Received a Rocket Launcher from a helpful Derelict 1631 | -10/Mines | Destroyed by S-10 Pest with Light Assault Rifle Last Messages --------------- 01524_ Dropped Power Shielding. 01525_ Acquired Rocket Launcher. 01537_ Plasma Injector explodes. 01537_ G-34 Mercenary destroyed. 01537_ G-47 Trooper destroyed. 01537_ Plasma Injector explodes. 01547_ Acquired 27 matter. 01548_ Acquired 8 matter. 01556_ System corrupted: Heat flow error (+290). 01557_ R-06 Scavenger collects Aluminum Leg. 01575_ U-05 Engineer builds a Wall. 01579_ K-01 Serf collects debris. 01601_ The unstable cave ceiling collapses. 01610_ K-01 Serf collects debris. 01625_ U-05 Engineer lays Concrete. 01626_ U-05 Engineer builds a Wall. 01628_ The unstable cave ceiling collapses. 01628_ K-01 Serf collects debris. 01628_ S-10 Pest destroyed. 01630_ U-05 Engineer lays Concrete. Map ----- +----------------------------------------------------+ | ?????????????????????????????????????### ##?#### | | ????????????????????????????????????## ###""" | | ????????????????????????????????????# # | | ?????????????????????????????????????# ## | | ?????????????????????????????????????## ## | | ?????????????????????????????????????## ##" | | ????????????????????????????????????## # | | ????????????????????????????????????# | | ????????????????????????????????????# | | ???????????????????????############?## ### | | ???????????????????????# # ##?## #?# | | ???????????????????????## #??# ### | | ???????????????????????# u #?## ## | | ???????????????????????# #### ### ## | | ???????????????????? ### ### # | | ??????????????????# ### ###"## | | ??????????????????#######s # ##?###? | | ???????????????????????# % ### ##?????? | | ???????????????????????# [ #### ##??????? | | ?????????????????????### s ### ##?####??? | | ?????????????????????# ## #### ##?? | | ?????????????????????? ## ## #?? | | ????????????????####### ## ##? | | ????????????????? k #? | | ?????????????????????# ## #? | | ???????????????????????# @ ######## ## | | ???????????????????? ######??????## # | | ??????????????????# #######????????????## | | ????????????????????????????????????????## | | ?????????????????????????????????????????## | | ??????????????????????????????????????????## | | ???????????????????????????????????????????## | | ???????????????????????????????????????????## | | ???????????????????????????????????????????# | | ???????????????????????????????????????????# | | ???????????????????????????????????????????## | | ????????????????????????????????????????????## | | ?????????????????????????????????????????????## | | ??????????????????????????????????????????????## | | ???????????????????????????????????????????????### | | ?????????????????????????????????????????????????# | | ?????????????????????????????????????????????????# | | ?????????????????????????????????????????????????# | | ?????????????????????????????????????????????????# | | ?????????????????????????????????????????????????# | | ?????????????????????????????????????????????????# | | ?????????????????????????????????????????????????# | | ?????????????????????????????????????????????????# | | ?????????????????????????????????????????????????# | | ????????????????????????????????????????????###### | +----------------------------------------------------+ Best States ------------- Heat Dissipation 25 Energy Generation 10 Energy Capacity 250 Matter Stores 300 Matter Capacity 300 Sight Range 16 Terrain Scan Density 10 Armor Coverage 150 Propulsion Shielding 33 Evasion (%) 44 Item Schematics ----------------- None Robot Schematics ------------------ None Fabricated ------------ Nothing Alien Tech Used ----------------- None Achievements -------------- None Challenges ------------ None Game ------ Seed CloakMagneticRailgun Manual? 0 Play Time 00:14:36 Cumulative 601.4 hours Start 2022.06.15 @ 21:37:48 End 2022.06.15 @ 21:51:19 Sessions 1 Manual Loads 0 Difficulty Rogue Special Mode None Game No. 481 Rogue 481 Adventurer 0 Explorer 0 Win Type - Total 5 Types 4/0/0/1/0/0/0/0/0 Lore% 72 Gallery% 84 Achievement% 66 Wizard Run 0 Options --------- ASCII 0 Keyboard 1 Movement Numpad Keybinds 0 Fullscreen 1 Font 12/Terminus Map View 83x54 Tactical HUD 1 Map Filters NONE Filters NONE Steam 1 RUN: efb3b01b-d7b8-4376-8f4a-9c7b280ad917